bitfinex-derivatives/quotes_ETHF0:USTF0_20260312
["timestamp","ask_amount","ask_price","bid_price","bid_amount"]
[1773283316780,7.65344323,2030.7,2030.4,7.57694432]
[1773283316982,7.65344323,2030.7,2030.4,14.33994432]
[1773283318382,7.65344323,2030.9,2030.5,7.57694432]
[1773283318576,14.95967834,2030.8,2030.5,7.57694432]
[1773283318782,7.30623511,2030.7,2030.5,7.57694432]
[1773283319082,7.65344323,2030.8,2030.5,7.57694432]
[1773283319278,7.30278046,2030.7,2030.5,7.57694432]
[1773283319483,7.65344323,2030.9,2030.5,7.57694432]
[1773283319682,7.3026985,2030.8,2030.5,7.57694432]
[1773283319881,7.3026985,2030.7,2030.5,7.57694432]
[1773283320083,7.65344323,2030.9,2030.5,7.57694432]
[1773283320285,7.65344323,2030.9,2030.5,14.34594432]
[1773283322085,4.30952105,2031.1,2030.6,7.57694432]
[1773283322086,7.65344323,2031.0,2030.6,7.57694432]
[1773283322584,7.65344323,2031.0,2030.6,6.773]
[1773283323788,7.89960323,2031.1,2030.7,7.57694432]
[1773283324185,0.24616,2031.1,2030.7,7.57694432]
[1773283324983,7.89960323,2031.1,2030.7,7.57694432]
[1773283325789,7.89960323,2031.1,2030.8,14.35594432]
[1773283326589,7.89960323,2031.1,2030.5,14.35694432]
[1773283326779,7.89960323,2031.1,2030.6,7.57694432]
[1773283327383,7.89960323,2031.1,2030.8,7.57694432]
[1773283327588,7.89960323,2031.1,2030.7,14.35794432]
[1773283327789,7.89960323,2031.1,2030.8,7.57694432]
[1773283328192,7.89960323,2031.1,2030.7,14.35894432]
[1773283331994,7.89960323,2031.1,2030.7,7.57694432]
[1773283332194,7.11377842,2031.0,2030.7,7.57694432]
[1773283332494,7.65344323,2031.0,2030.7,7.57694432]
[1773283332897,7.65344323,2031.0,2030.7,14.36694432]
[1773283333398,7.89960323,2031.1,2030.7,6.79]
[1773283333598,7.65344323,2030.9,2030.7,6.79]
[1773283333892,7.65344323,2030.9,2030.6,7.57694432]
[1773283334196,7.65344323,2030.7,2030.4,6.792]
[1773283334794,7.65344323,2030.7,2030.4,14.36894432]
[1773283334996,7.65344323,2030.7,2030.3,14.36994432]
[1773283335398,7.65344323,2030.7,2030.4,7.57694432]
[1773283336197,0.24619,2030.8,2030.4,7.57694432]
[1773283336198,7.89963323,2030.8,2030.4,7.57694432]
[1773283337798,7.65344323,2030.9,2030.4,7.57694432]
[1773283337998,7.65344323,2030.7,2030.3,14.36994432]
[1773283338399,7.65344323,2030.7,2030.4,7.57694432]
[1773283339299,7.65344323,2030.7,2030.3,7.57694432]
[1773283339492,7.65344323,2030.7,2030.3,14.37794432]
[1773283339689,7.65344323,2030.7,2030.4,7.57694432]
[1773283340202,7.70579195,2030.8,2030.4,7.57694432]
[1773283340397,0.24619,2030.8,2030.4,7.57694432]
[1773283341302,7.11108524,2031.0,2030.4,7.57694432]
[1773283341603,7.11108524,2030.9,2030.4,7.57694432]
[1773283342599,0.24619,2030.8,2030.4,7.57694432]
[1773283342791,7.45960195,2031.0,2030.4,7.57694432]
[1773283343703,7.70579195,2030.8,2030.4,7.57694432]
[1773283344302,0.24619,2030.8,2030.4,7.57694432]
[1773283344997,0.24619,2030.8,2030.4,6.814]
[1773283344998,7.70579195,2030.8,2030.4,6.814]
[1773283345201,7.70579195,2030.8,2030.5,7.72583853]
[1773283345395,0.24619,2030.8,2030.5,7.72583853]
[1773283345594,7.45960195,2031.0,2030.5,7.72583853]
[1773283345797,7.45960195,2031.2,2030.5,9.07317671]
[1773283346101,7.11255092,2031.1,2030.5,9.07317671]
[1773283346295,7.11255092,2031.0,2030.5,9.07317671]
[1773283346497,7.45960195,2031.2,2030.5,9.07317671]
[1773283346694,7.1124412,2031.1,2030.5,9.07317671]
[1773283346899,7.45960195,2031.2,2030.5,9.07317671]
[1773283347104,8.80694013,2031.0,2030.5,14.54583853]
[1773283347301,8.80694013,2031.0,2030.6,7.72583853]
[1773283349200,7.45960195,2031.0,2030.6,7.72583853]
[1773283349401,15.25094013,2031.2,2030.6,7.72583853]
[1773283349595,7.45960195,2031.0,2030.6,7.72583853]
[1773283349801,7.45960195,2031.0,2030.6,14.55483853]
[1773283350001,7.45960195,2031.0,2030.7,7.72583853]
[1773283351405,0.00563545,2031.3,2030.7,7.72583853]
[1773283351406,7.70575195,2031.1,2030.7,7.72583853]
[1773283351705,3.17543851,2031.1,2030.7,7.72583853]
[1773283352304,7.4652374,2031.3,2030.7,9.07317671]
[1773283352605,0.24615,2031.1,2030.7,9.07317671]
[1773283352805,0.24615,2031.1,2030.7,7.72583853]
[1773283353406,9.05309013,2031.1,2030.7,6.842]
[1773283353804,9.05309013,2031.1,2030.7,14.56783853]
[1773283354001,7.70575195,2031.1,2030.8,7.72583853]
[1773283355002,7.70575195,2031.1,2030.3,1.34733818]
[1773283355207,7.70575195,2031.1,2030.5,7.72583853]
[1773283358706,7.45960195,2030.8,2030.5,14.58683853]
[1773283358907,7.45960195,2031.0,2030.6,7.72583853]
[1773283360208,0.24615,2031.1,2030.6,7.72583853]
[1773283360209,7.70575195,2031.1,2030.6,7.72583853]
[1773283360412,0.24615,2031.1,2030.6,7.72583853]
[1773283360809,7.70575195,2031.1,2030.6,7.72583853]
[1773283361411,7.71350182,2030.7,2030.2,7.78076851]
[1773283361610,7.46730182,2030.5,2030.2,7.78076851]
[1773283361913,7.71350182,2030.7,2030.2,7.78076851]
[1773283362118,0.2462,2030.7,2030.2,7.78076851]
[1773283362709,7.82733818,2031.0,2030.2,7.78076851]
[1773283362710,7.46730182,2031.0,2030.6,7.77456999]
[1773283363910,7.46730182,2031.1,2030.6,7.77456999]
[1773283364114,7.46730182,2030.9,2030.6,7.77456999]
[1773283364720,7.71347182,2031.0,2030.6,7.77456999]
[1773283367122,7.71347182,2031.0,2030.5,14.65156999]
[1773283367324,7.71347182,2031.0,2030.6,7.77456999]
[1773283369322,7.71347182,2031.0,2030.5,14.65156999]
[1773283370023,7.59797962,2030.8,2030.4,6.906]
[1773283370626,7.59797962,2030.8,2030.5,7.66955947]
[1773283372020,7.84414962,2031.0,2030.5,7.66955947]
[1773283372324,14.70230021,2030.9,2030.5,7.66955947]
[1773283372523,7.59797962,2030.9,2030.5,7.66955947]
[1773283373728,0.24617,2031.0,2030.5,9.01689765]
[1773283374233,0.00563545,2031.3,2031.0,7.20913654]
[1773283374633,7.59797962,2031.7,2031.0,7.20913654]
[1773283375426,0.24611,2031.5,2031.0,7.20913654]
[1773283375639,7.59797962,2031.7,2031.0,7.20913654]
[1773283375640,0.00365316,2031.7,2031.4,7.66955947]
[1773283375825,7.60163278,2031.7,2031.4,7.66955947]
[1773283376431,7.84401962,2032.1,2031.7,7.66955947]
[1773283377125,7.84401962,2032.1,2031.4,6.932]
[1773283377126,7.84401962,2032.1,2031.5,7.66955947]
[1773283377329,7.84903243,2032.1,2031.5,7.67354208]
[1773283377836,7.84903243,2032.1,2031.4,8.27933818]
[1773283377837,7.59797962,2031.7,2031.4,7.66955947]
[1773283378136,7.59797962,2031.8,2031.1,7.66955947]
[1773283378332,8.9453178,2031.8,2031.3,7.66955947]
[1773283378636,8.9453178,2031.8,2031.3,14.61155947]
[1773283378835,8.9453178,2031.8,2031.4,7.66955947]
[1773283379531,7.59797962,2031.8,2031.3,6.94766341]
[1773283379833,7.59797962,2031.8,2031.3,14.61722288]
[1773283380036,7.59797962,2031.6,2031.3,0.00566341]
[1773283380226,7.59797962,2031.6,2031.3,14.62522288]
[1773283381037,7.59797962,2031.6,2031.3,7.67522288]
[1773283381234,7.59797962,2031.6,2031.3,0.00566341]
[1773283381638,7.84405962,2031.7,2031.3,7.67522288]
[1773283383636,0.24608,2031.7,2031.3,7.67522288]
[1773283385134,7.84405962,2031.7,2031.2,6.973]
[1773283385536,7.84405962,2031.7,2031.2,14.64255947]
[1773283386037,7.84405962,2031.7,2031.2,0.00463904]
[1773283386231,13.89794962,2031.7,2031.2,0.00463904]
[1773283386432,7.59797962,2031.6,2031.0,14.64755947]
[1773283386633,7.59797962,2031.4,2031.0,14.64755947]
[1773283387040,7.84408962,2031.5,2031.1,7.66955947]
[1773283387241,0.24611,2031.5,2031.1,7.66955947]
[1773283387437,7.84408962,2031.5,2031.1,7.67380183]
[1773283388438,7.84408962,2031.5,2031.1,14.65980183]
[1773283388640,7.84408962,2031.5,2031.1,7.67380183]
[1773283388839,7.84408962,2031.5,2031.1,14.66080183]
[1773283389039,7.84408962,2031.5,2031.2,7.66955947]
[1773283389741,0.24611,2031.5,2031.2,7.66955947]
[1773283390240,7.59797962,2031.6,2031.2,7.66955947]
[1773283391047,7.59797962,2031.8,2031.2,7.66955947]
[1773283392448,7.59797962,2032.0,2031.2,7.66955947]
[1773283392648,7.59797962,2032.0,2031.4,7.66955947]
[1773283394945,7.84903243,2032.1,2031.4,7.66955947]
[1773283395348,0.25105281,2032.1,2031.4,7.66955947]
[1773283395547,0.00501281,2032.1,2031.4,7.66955947]
[1773283396950,0.00501281,2032.1,2031.5,7.016]
[1773283396951,7.60299243,2032.1,2031.5,7.016]
[1773283397150,7.60299243,2032.1,2031.6,7.66955947]
[1773283398250,0.00501281,2032.1,2031.6,7.66955947]
[1773283398451,7.60299243,2032.1,2031.6,14.68955947]
[1773283398653,7.60299243,2032.1,2031.7,7.021]
[1773283398846,7.60299243,2032.1,2031.7,14.69055947]
[1773283399846,7.60299243,2032.1,2031.8,7.66955947]
[1773283400451,7.60299243,2032.1,2031.7,14.59594468]
[1773283400853,7.60299243,2032.1,2031.8,7.57494468]
[1773283401249,7.60299243,2032.1,2031.7,7.57494468]
[1773283401446,7.60299243,2032.1,2031.1,0.00424236]
[1773283401447,8.32721888,2031.8,2031.2,7.57494468]
[1773283401651,8.32721888,2031.8,2031.4,7.57494468]
[1773283403953,8.32721888,2031.8,2031.3,7.039]
[1773283404258,8.32721888,2031.8,2031.3,14.61394468]
[1773283404458,8.32721888,2031.8,2031.4,7.57494468]
[1773283406360,0.24607,2031.8,2031.4,7.57494468]
[1773283406761,8.32721888,2031.8,2031.4,7.57494468]
[1773283410264,0.24607,2031.8,2031.4,7.57494468]
[1773283411461,0.00501281,2032.1,2031.4,7.57494468]
[1773283411764,8.08616169,2032.1,2031.4,7.57494468]
[1773283412462,8.08616169,2032.1,2031.6,7.57494468]
[1773283412965,8.08616169,2032.1,2031.7,7.57494468]
[1773283413864,8.08114888,2031.9,2031.6,7.073]
[1773283414568,8.08114888,2031.9,2031.6,14.64794468]
[1773283416671,8.08114888,2031.9,2031.6,7.073]
[1773283417168,8.32721888,2031.8,2031.2,7.57494468]
[1773283417468,8.32721888,2031.8,2031.3,14.66094468]
[1773283417867,8.32721888,2031.8,2031.4,7.57494468]
[1773283418671,0.24607,2031.8,2031.4,7.57494468]
[1773283421663,7.6951061,2031.8,2031.4,7.57494468]
[1773283421867,7.6951061,2031.8,2031.5,7.62797234]
[1773283422068,0.24607,2031.8,2031.5,7.62797234]
[1773283424070,6.83159134,2031.9,2031.5,7.62797234]
[1773283424270,14.03199313,2033.0,2031.5,8.97420425]
[1773283424271,0.24601,2032.4,2031.5,8.97420425]
[1773283424578,14.52848974,2032.4,2031.5,8.97420425]
[1773283424872,7.4490361,2032.8,2032.0,7.62797234]
[1773283425176,7.45520106,2032.8,2032.2,7.62797234]
[1773283425674,7.4490361,2032.6,2032.1,14.74297234]
[1773283425978,7.4490361,2032.6,2032.2,7.62797234]
[1773283427270,7.4490361,2032.4,2031.8,7.62797234]
[1773283427466,7.4490361,2032.4,2032.0,7.62797234]
[1773283427971,7.6950261,2032.5,2032.0,7.62797234]
[1773283429175,0.24599,2032.5,2032.0,7.62797234]
[1773283429476,0.24599,2032.5,2032.2,7.62797234]
[1773283429675,7.6950261,2032.5,2032.0,7.62797234]
[1773283430874,7.6950261,2032.5,2032.2,7.27531457]
[1773283431377,0.24599,2032.5,2032.2,7.27531457]
[1773283431970,7.3464002,2032.7,2032.2,7.27531457]
[1773283434071,7.5923702,2032.6,2032.2,7.27531457]
[1773283435464,7.5923702,2032.6,2032.1,7.27531457]
[1773283435670,7.5923702,2032.6,2032.1,14.42431457]
[1773283436377,7.5923702,2032.6,2032.2,7.27531457]
[1773283436771,8.93860211,2032.6,2031.6,7.27531457]
[1773283437071,8.93860211,2032.6,2031.9,7.27531457]
[1773283437375,8.93860211,2032.6,2032.0,7.27531457]
[1773283438168,7.3464002,2032.6,2032.0,7.27531457]
[1773283438373,0.24596,2032.7,2032.0,7.27531457]
[1773283438574,7.5923602,2032.7,2032.0,7.27531457]
[1773283438874,7.5923602,2032.7,2032.1,14.43531457]
[1773283439072,1.34623191,2032.6,2032.1,7.27531457]
[1773283439275,7.3464002,2032.5,2032.0,7.27531457]
[1773283439470,7.3464002,2032.6,2032.0,7.27531457]
[1773283439667,0.24596,2032.7,2032.0,7.27531457]
[1773283439870,7.5923602,2032.7,2032.0,7.27531457]
[1773283440476,0.24596,2032.7,2032.0,7.27531457]
[1773283441078,7.5923602,2032.7,2032.2,7.27531457]
[1773283441272,7.5923602,2032.7,2032.3,7.27531457]
[1773283443179,0.24596,2032.7,2032.3,7.27531457]
[1773283443682,7.5923602,2032.7,2032.3,14.45031457]
[1773283443979,7.5923602,2032.7,2032.4,7.27531457]
[1773283443980,0.24596,2032.7,2032.4,7.27531457]
[1773283444177,7.5923602,2032.7,2032.4,7.27531457]
[1773283444373,7.5923602,2032.7,2032.3,14.45331457]
[1773283444680,7.5923602,2032.7,2032.4,7.27531457]
[1773283446579,0.24596,2032.7,2032.4,7.27531457]
[1773283449783,7.5923602,2032.7,2032.3,14.46331457]
[1773283450182,0.00616496,2032.8,2032.4,7.27531457]
[1773283451588,0.24596,2032.7,2032.4,7.27531457]
[1773283451986,14.4234002,2033.1,2032.4,7.27531457]
[1773283452286,0.24595,2032.8,2032.0,7.27531457]
[1773283452480,7.5923502,2032.8,2032.2,7.27531457]
[1773283452881,7.5923502,2032.8,2032.4,7.27531457]
[1773283453085,0.25160319,2032.8,2032.5,7.27531457]
[1773283453280,7.59800339,2032.8,2032.5,7.27531457]
[1773283453481,7.59800339,2032.8,2032.3,7.27531457]
[1773283453887,7.59800339,2032.8,2032.4,7.27531457]
[1773283455085,7.59800339,2032.8,2032.3,7.209]
[1773283455086,7.59800339,2032.8,2032.3,14.48431457]
[1773283455388,8.9442353,2032.8,2032.2,14.48831457]
[1773283455587,7.3464002,2032.6,2032.2,14.48931457]
[1773283455787,7.3464002,2032.6,2032.3,7.27531457]
[1773283456288,7.3464002,2032.6,2032.2,7.214]
[1773283456487,7.3464002,2032.6,2032.2,14.48931457]
[1773283456889,7.3464002,2032.6,2032.3,7.27531457]
[1773283457491,7.3464002,2032.6,2032.3,3.13464627]
[1773283458688,7.3464002,2032.6,2032.2,14.50031457]
[1773283461093,7.3464002,2032.6,2032.3,7.37171276]
[1773283461293,8.49172337,2032.7,2032.3,7.37171276]
[1773283462797,8.49172337,2032.7,2032.2,14.60871276]
[1773283463092,8.49172337,2032.7,2032.3,7.37171276]
[1773283463494,7.39836755,2032.8,2032.3,7.37171276]
[1773283464392,0.25160319,2032.8,2032.3,7.37171276]
[1773283464592,7.05214212,2032.8,2032.3,7.37171276]
[1773283464795,14.19890648,2032.8,2032.3,7.37171276]
[1773283464993,7.39836755,2032.8,2032.3,7.37171276]
[1773283465795,0.25160319,2032.8,2032.3,7.37171276]
[1773283467601,7.14676436,2033.1,2032.3,8.71667177]
[1773283467897,8.49172337,2033.1,2032.3,8.71667177]
[1773283468104,8.49172337,2032.9,2032.3,7.37171276]
[1773283468305,8.49172337,2032.9,2032.5,7.37171276]
[1773283468502,8.49172337,2032.9,2032.5,14.62771276]
[1773283468699,8.49622453,2032.9,2032.5,14.62771276]
[1773283468900,8.49622453,2032.9,2032.6,7.37171276]
[1773283469096,8.49622453,2032.9,2032.6,7.37537977]
[1773283469702,7.14676436,2032.7,2032.6,0.00366701]
[1773283470095,7.39271436,2032.8,2032.6,0.00366701]
[1773283470296,0.24595,2032.8,2032.6,7.37537977]
[1773283470907,7.39271436,2032.8,2032.6,0.00366701]
[1773283472111,7.39271436,2032.8,2032.3,7.37171276]
[1773283473207,7.39271436,2032.8,2032.3,7.37603367]
[1773283474214,0.00450116,2032.9,2032.5,7.37171276]
[1773283474414,7.14676436,2033.1,2032.5,7.37171276]
[1773283474709,8.49172337,2033.1,2032.6,14.64871276]
[1773283475117,8.49172337,2033.1,2032.7,7.37171276]
[1773283475416,8.49563992,2033.1,2032.7,7.37171276]
[1773283477515,7.15068091,2033.1,2032.7,7.37171276]
[1773283477718,0.00391655,2033.1,2032.7,7.37171276]
[1773283478016,7.15068091,2033.1,2032.7,7.37171276]
[1773283479712,8.49563992,2033.1,2032.6,7.37171276]
[1773283479917,8.49172337,2032.9,2032.6,7.37171276]
[1773283480115,7.14676436,2032.9,2032.6,7.37171276]
[1773283480420,0.24592,2033.0,2032.6,7.37171276]
[1773283480722,7.15068091,2033.1,2032.6,7.37171276]
[1773283481013,0.24592,2033.0,2032.6,7.37171276]
[1773283481219,7.22981534,2033.0,2032.6,14.67071276]
[1773283481519,7.22981534,2033.0,2032.7,7.20904878]
[1773283482120,7.22981534,2033.0,2032.6,14.50804878]
[1773283482720,7.22981534,2033.0,2032.5,7.20904878]
[1773283482912,7.22981534,2033.0,2032.6,7.305]
[1773283483213,6.98389534,2032.8,2032.4,7.20904878]
[1773283483412,6.98389534,2032.8,2032.5,7.306]
[1773283484122,6.98389534,2032.8,2032.5,14.51504878]
[1773283484923,6.98389534,2032.9,2032.6,7.20904878]
[1773283485426,0.24592,2033.0,2032.6,7.20904878]
[1773283485721,7.22981534,2033.0,2032.6,7.20904878]
[1773283486724,7.22981534,2033.0,2032.7,7.20904878]
[1773283487024,14.32381189,2033.1,2032.7,7.20904878]
[1773283487222,7.33991655,2033.1,2032.7,7.20904878]
[1773283487421,14.32381189,2033.1,2032.7,7.20904878]
[1773283487615,6.98389534,2033.0,2032.7,7.20904878]
[1773283488622,6.98389534,2033.0,2032.6,14.52704878]
[1773283488922,7.22982534,2033.0,2032.6,14.53504878]
[1773283489624,7.22982534,2033.0,2032.6,7.20904878]
[1773283489819,8.57478435,2033.0,2032.3,7.21336969]
[1773283490018,8.57478435,2033.0,2032.4,7.20904878]
[1773283490215,7.22982534,2033.0,2032.4,7.20904878]
[1773283494129,8.57478435,2033.0,2032.4,7.20904878]
[1773283494325,8.57478435,2033.0,2032.5,7.22028558]
[1773283496724,8.57478435,2033.0,2032.3,7.22460649]
[1773283496929,8.57478435,2033.0,2032.4,14.57528558]
[1773283497332,8.57478435,2033.0,2032.5,7.22028558]
[1773283500632,0.00391655,2033.1,2032.5,8.56524459]
[1773283500932,7.2926013,2033.0,2032.5,7.22028558]
[1773283501134,7.2926013,2033.0,2032.3,0.00432091]
[1773283501135,7.2926013,2033.0,2032.6,14.59128558]
[1773283501634,7.2926013,2033.0,2032.7,7.22028558]
[1773283502132,7.2926013,2033.0,2032.5,7.22028558]
[1773283502334,7.2926013,2033.0,2032.3,1.34927992]
[1773283502335,7.2926013,2033.0,2032.6,14.59528558]
[1773283502535,0.24593,2033.0,2032.7,7.22028558]
[1773283502734,7.05058785,2033.1,2032.7,7.22028558]
[1773283508538,6.29406,2033.6,2032.6,7.375]
[1773283508539,7.2925313,2033.6,2033.0,7.22028558]
[1773283509038,7.2925313,2033.6,2033.1,7.22028558]
[1773283509336,8.63749031,2033.6,2033.1,7.22028558]
[1773283509537,8.64158304,2033.6,2033.1,7.22028558]
[1773283510238,7.29662403,2033.6,2033.1,7.22028558]
[1773283511333,8.39163031,2033.2,2032.6,7.22028558]
[1773283511538,7.0466713,2033.2,2032.8,7.22028558]
[1773283511738,7.0466713,2033.2,2032.8,14.63028558]
[1773283512037,7.0466713,2033.2,2032.9,7.22028558]
[1773283514242,8.39163031,2033.2,2032.3,0.00432091]
[1773283514444,7.0466713,2032.9,2032.5,7.22028558]
[1773283515942,7.0466713,2032.9,2032.5,14.64528558]
[1773283516143,7.0466713,2033.0,2032.6,7.22028558]
[1773283519643,7.0466713,2033.0,2032.6,14.65928558]
[1773283519847,7.0466713,2033.0,2032.4,7.22028558]
[1773283521048,7.21119752,2033.1,2032.4,7.22028558]
[1773283524346,7.21119752,2033.1,2032.5,14.20596172]
[1773283525151,7.21119752,2033.1,2032.6,6.74896172]
[1773283526047,6.96527752,2032.8,2032.3,7.46732091]
[1773283526248,6.96527752,2032.8,2032.3,0.00432091]
[1773283526846,0.24596,2032.7,2032.3,0.00432091]
[1773283527051,6.96527752,2032.6,2032.0,14.21496172]
[1773283527251,6.96527752,2032.6,2032.1,7.467]
[1773283527454,6.96527752,2032.6,2032.2,6.74896172]
[1773283528050,6.96527752,2032.6,2032.2,6.75308391]
[1773283528850,6.96527752,2032.6,2032.2,0.00412219]
[1773283530349,6.96527752,2032.4,2032.2,0.00412219]
[1773283530551,6.96527752,2032.4,2032.1,7.23701217]
[1773283531048,7.21126752,2032.5,2032.1,7.23701217]
[1773283531255,7.21126752,2032.5,2032.1,7.482]
[1773283531457,7.21126752,2032.5,2032.1,0.00591696]
[1773283536365,7.21126752,2032.5,2031.8,6.74896172]
[1773283536662,7.21126752,2032.5,2031.7,14.26396172]
[1773283537351,7.21126752,2032.5,2031.7,14.26787847]
[1773283538465,7.21126752,2032.5,2031.8,6.74896172]
[1773283539064,7.21126752,2032.5,2032.0,6.74896172]
[1773283539458,7.21126752,2032.5,2031.9,7.531]
[1773283539659,7.21126752,2032.5,2032.0,6.74896172]
[1773283544059,7.21126752,2032.5,2031.9,6.95542003]
[1773283544863,7.21126752,2032.5,2031.9,14.52042003]
[1773283545066,7.21126752,2032.5,2032.0,6.95542003]
[1773283549365,7.21126752,2032.5,2031.9,14.52042003]
[1773283552771,7.21126752,2032.5,2032.0,6.50624235]
[1773283557071,0.24599,2032.5,2032.0,6.50624235]
[1773283557271,6.64374298,2032.8,2032.0,6.50624235]
[1773283557773,6.64374298,2032.8,2031.7,1.34819988]
[1773283557774,6.64374298,2032.6,2032.2,6.50624235]
[1773283557972,6.64374298,2032.6,2032.2,14.12824235]
[1773283558471,6.64374298,2032.6,2032.0,6.50624235]
[1773283558664,6.64374298,2032.6,2031.9,14.13124235]
[1773283558869,6.64374298,2032.6,2031.9,14.13224235]
[1773283559675,0.24599,2032.5,2031.9,14.13224235]
[1773283559975,6.64374298,2032.4,2031.9,14.13224235]
[1773283560175,6.64374298,2032.4,2031.7,14.1401591]
[1773283561276,1.59027313,2032.5,2031.7,6.5101591]
[1773283561277,6.64374298,2032.2,2031.7,6.5101591]
[1773283561673,6.64374298,2032.2,2031.7,0.00391675]
[1773283561975,6.64374298,2032.2,2031.7,6.5101591]
[1773283562179,6.64374298,2032.4,2031.9,6.50624235]
[1773283563879,6.88974298,2032.4,2031.8,7.638]
[1773283564280,6.88974298,2032.4,2031.8,14.14424235]
[1773283565282,6.88974298,2032.4,2031.9,6.50624235]
[1773283566886,6.88974298,2032.4,2032.0,6.50624235]
[1773283567387,6.81378042,2032.3,2031.7,0.00391675]
[1773283567589,6.64374298,2032.2,2031.7,6.5101591]
[1773283571387,6.64374298,2032.2,2031.7,0.00391675]
[1773283571790,6.64374298,2032.2,2031.7,6.5101591]
[1773283574993,6.64374298,2032.3,2031.7,6.5101591]
[1773283575694,6.88974298,2032.4,2031.7,6.5101591]
[1773283576997,6.88974298,2032.4,2031.9,6.50624235]
[1773283582601,0.246,2032.4,2031.9,6.50624235]
[1773283583302,6.95387311,2032.4,2031.9,6.50624235]
[1773283588907,6.70787311,2032.6,2031.9,6.50624235]
[1773283589103,8.05296602,2032.6,2031.9,6.50624235]
[1773283589300,6.70787311,2032.4,2031.9,6.50624235]
[1773283593207,0.24599,2032.5,2031.9,6.50624235]
[1773283593411,6.70787311,2032.5,2032.1,6.4782701]
[1773283594805,6.70787311,2032.5,2032.1,14.2372701]
[1773283595009,6.70787311,2032.5,2032.2,6.4782701]
[1773283596607,6.70787311,2032.7,2032.2,6.4782701]
[1773283596808,6.70787311,2032.7,2032.2,7.82336301]
[1773283601215,6.06801447,2032.9,2032.4,7.40688445]
[1773283601413,0.24593,2033.0,2032.6,6.06179154]
[1773283601414,6.31394447,2033.0,2032.6,6.06179154]
[1773283601608,1.53744101,2033.0,2032.6,7.40688445]
[1773283602208,6.06801447,2033.2,2032.6,7.40688445]
[1773283602716,6.06801447,2033.1,2032.6,7.40688445]
[1773283602912,6.06801447,2033.1,2032.6,6.06179154]
[1773283603113,6.06801447,2033.1,2032.6,13.84779154]
[1773283603613,6.06801447,2033.1,2032.7,6.06179154]
[1773283606514,7.41310738,2033.3,2032.7,6.06179154]
[1773283607716,7.41310738,2033.3,2032.6,13.84779154]
[1773283608320,7.41310738,2033.3,2032.6,6.06179154]
[1773283608518,7.41310738,2033.3,2032.6,13.86579154]
[1773283608715,7.41310738,2033.3,2032.7,6.06179154]
[1773283611820,7.41310738,2033.3,2032.6,7.809]
[1773283612119,7.41310738,2033.3,2032.6,14.53939673]
[1773283612320,7.41310738,2033.3,2032.7,6.73039673]
[1773283615914,6.16117736,2033.1,2032.7,6.73039673]
[1773283616115,6.16117736,2032.8,2032.3,7.826]
[1773283616319,6.16117736,2032.8,2032.0,1.34509291]
[1773283616622,1.34509291,2032.9,2032.2,6.73039673]
[1773283616822,6.16117736,2032.8,2032.2,6.73039673]
[1773283620723,6.16117736,2032.6,2031.9,6.73039673]
[1773283620924,6.16117736,2032.2,2031.7,6.73431348]
[1773283623831,6.16117736,2032.4,2031.7,8.07940639]
[1773283624030,6.16117736,2032.4,2031.7,6.73431348]
[1773283624427,6.16117736,2032.4,2031.7,8.07940639]
[1773283624626,6.16117736,2032.2,2031.7,8.07940639]
[1773283625635,6.16117736,2032.2,2031.7,6.73431348]
[1773283627540,6.16117736,2032.0,2031.6,14.59539673]
[1773283628437,6.16568023,2032.0,2031.6,14.6004103]
[1773283628939,6.16568023,2032.0,2031.6,6.7354103]
[1773283629144,6.16117736,2031.9,2031.4,6.73039673]
[1773283630143,6.16117736,2031.9,2031.4,6.7356145]
[1773283631045,6.16568023,2032.0,2031.4,8.08070741]
[1773283631441,0.24601,2032.3,2031.4,8.08070741]
[1773283631746,6.40718736,2032.3,2031.9,6.73039673]
[1773283632542,0.0053551,2032.3,2031.9,6.73039673]
[1773283632742,6.16117736,2032.5,2031.9,6.73039673]
[1773283632948,7.50627027,2032.5,2031.9,6.73039673]
[1773283633146,6.16117736,2032.4,2031.8,6.73039673]
[1773283633648,6.1652987,2032.4,2031.8,6.73039673]
[1773283635138,6.1652987,2032.4,2031.7,7.889]
[1773283635339,6.16117736,2032.2,2031.7,6.73039673]
[1773283635544,6.16117736,2032.2,2031.6,14.62439673]
[1773283635848,6.16117736,2032.2,2031.6,14.62639673]
[1773283636048,6.16117736,2032.2,2031.7,6.73039673]
[1773283637144,6.16117736,2032.2,2031.4,6.7356145]
[1773283637354,6.16117736,2031.8,2031.4,6.7356145]
[1773283639846,6.16117736,2031.8,2031.4,0.00521777]
[1773283639847,6.16117736,2031.6,2031.4,0.00521777]
[1773283640051,7.50627027,2031.6,2031.0,6.22153336]
[1773283640249,6.16117736,2031.6,2031.0,6.22153336]
[1773283640549,6.16117736,2031.6,2031.0,7.56662627]
[1773283640950,6.16117736,2031.6,2031.0,7.57090361]
[1773283641549,6.16117736,2031.6,2031.0,6.2258107]
[1773283645642,6.04015809,2031.4,2031.0,0.00427734]
[1773283645848,6.04015809,2031.4,2030.8,6.22153336]
[1773283646753,6.04015809,2031.4,2030.8,6.22701368]
[1773283647953,6.04015809,2031.2,2030.8,6.22701368]
[1773283648157,6.04015809,2031.2,2030.8,0.00548032]
[1773283648451,6.04015809,2031.2,2030.8,6.22701368]
[1773283649057,6.04015809,2031.2,2030.8,0.00548032]
[1773283649757,6.04015809,2031.2,2030.6,6.22153336]
[1773283650847,6.04015809,2031.2,2030.6,6.22593097]
[1773283651659,6.04015809,2031.2,2030.6,0.00439761]
[1773283653855,6.04015809,2031.0,2030.6,0.00439761]
[1773283654055,6.04015809,2031.0,2030.5,6.22153336]
[1773283654252,6.04015809,2031.0,2030.1,6.22153336]
[1773283654655,6.04015809,2030.8,2030.1,6.22153336]
[1773283654959,6.04015809,2030.4,2029.7,6.22153336]
[1773283656058,6.04015809,2030.4,2029.7,6.22747466]
[1773283658455,6.28635809,2030.7,2029.9,6.22153336]
[1773283659754,0.00383055,2030.8,2029.9,6.22153336]
[1773283659959,0.00383055,2030.8,2030.3,6.22153336]
[1773283660360,6.04015809,2031.0,2030.3,6.22153336]
[1773283660554,6.04015809,2031.2,2030.3,6.22153336]
[1773283660758,6.04015809,2031.2,2030.4,6.22153336]
[1773283661254,0.24613,2031.3,2030.4,7.56776414]
[1773283661452,7.69920909,2032.0,2031.3,6.36165078]
[1773283661453,5.96275497,2032.0,2031.3,6.36165078]
[1773283661654,5.96275497,2031.8,2031.0,7.965]
[1773283661858,5.96275497,2031.6,2031.1,6.36165078]
[1773283662460,0.003644,2031.6,2031.1,6.36757101]
[1773283662865,5.96275497,2031.9,2031.1,6.36757101]
[1773283663765,5.96779693,2031.9,2031.1,6.36757101]
[1773283664564,0.24602,2032.2,2031.1,6.36757101]
[1773283664859,6.20877497,2032.2,2031.1,6.36757101]
[1773283665057,6.20877497,2032.2,2031.3,6.36165078]
[1773283665565,6.2140056,2032.2,2031.3,6.36165078]
[1773283673068,6.29660034,2032.1,2031.3,6.36165078]
[1773283674169,6.29660034,2031.6,2031.1,2.3e-07]
[1773283674373,6.29660034,2031.6,2030.9,6.27775835]
[1773283674564,6.29660034,2031.8,2030.9,6.27775835]